fUSD/lending_fUSD_20250923
["ID","MTS","AMOUNT","RATE_DAILY","PERIOD"]
[387173601,1758606659780,-423.3953122,0.0002027,2]
[387173602,1758606659790,-400.0,0.0002027,2]
[387173603,1758606659803,-400.0,0.0002027,2]
[387173604,1758606659813,-400.0,0.0002027,2]
[387173605,1758606659823,-400.0,0.0002027,2]
[387173606,1758606659832,-400.0,0.0002027,2]
[387173607,1758606659843,-402.63466826,0.0002027,2]
[387173608,1758606659852,-430.64,0.0002027,2]
[387173609,1758606659863,-433.72,0.0002027,2]
[387173610,1758606659873,-400.0,0.0002027,2]
[387173611,1758606659883,-400.0,0.0002027,2]
[387173612,1758606659893,-400.0,0.0002027,2]
[387173613,1758606659903,-400.0,0.0002027,2]
[387173614,1758606659913,-400.0,0.0002027,2]
[387173615,1758606659922,-400.0,0.0002027,2]
[387173616,1758606659932,-400.0,0.0002027,2]
[387173617,1758606659942,-400.0,0.0002027,2]
[387173618,1758606659952,-429.28,0.0002027,2]
[387173619,1758606659962,-400.0,0.0002027,2]
[387173620,1758606659972,-407.06028012,0.0002027,2]
[387173621,1758606659983,-400.0,0.0002027,2]
[387173622,1758606659992,-400.0,0.0002027,2]
[387173623,1758606660002,-400.0,0.0002027,2]
[387173624,1758606660012,-720.6,0.0002027,2]
[387173625,1758606660022,-400.0,0.0002027,2]
[387173626,1758606660032,-477.23,0.0002027,2]
[387173627,1758606660043,-404.92481538,0.0002027,2]
[387173628,1758606660053,-336.4359817,0.0002027,2]
[387173629,1758606660064,-400.0,0.0002027,2]
[387173630,1758606660074,-400.0,0.0002027,2]
[387173631,1758606660084,-400.0,0.0002027,2]
[387173632,1758606660094,-164.24,0.0002027,2]
[387173633,1758606660104,-400.0,0.0002027,2]
[387173634,1758606660114,-400.0,0.0002027,2]
[387173635,1758606660124,-400.0,0.0002027,2]
[387173636,1758606660134,-540.18,0.0002027,2]
[387173637,1758606660144,-460.67,0.0002027,2]
[387173638,1758606660153,-400.0,0.0002027,2]
[387173639,1758606660163,-400.0,0.0002027,2]
[387173640,1758606660173,-500.48,0.0002027,2]
[387173641,1758606660183,-414.35,0.0002027,2]
[387173642,1758606660193,-400.0,0.0002027,2]
[387173643,1758606660204,-400.0,0.0002027,2]
[387173644,1758606660215,-400.0,0.0002027,2]
[387173645,1758606660226,-400.0,0.0002027,2]
[387173646,1758606660236,-400.0,0.0002027,2]
[387173647,1758606660246,-400.0,0.0002027,2]
[387173648,1758606660256,-406.23722213,0.0002027,2]
[387173649,1758606660266,-400.0,0.0002027,2]
[387173650,1758606660276,-415.66,0.0002027,2]
[387173651,1758606660286,-400.0,0.0002027,2]
[387173652,1758606660295,-400.0,0.0002027,2]
[387173653,1758606660305,-400.0,0.0002027,2]
[387173654,1758606660315,-234.95527375,0.0002027,2]
[387173655,1758606660544,-400.0,0.0002027,2]
[387173656,1758606660560,-400.0,0.0002027,2]
[387173657,1758606660570,-400.0,0.0002027,2]
[387173658,1758606660579,-400.0,0.0002027,2]
[387173659,1758606660588,-400.0,0.0002027,2]
[387173660,1758606660597,-400.0,0.0002027,2]
[387173661,1758606660607,-400.0,0.0002027,2]
[387173662,1758606660616,-400.0,0.0002027,2]
[387173663,1758606660626,-400.0,0.0002027,2]
[387173664,1758606660635,-541.80018891,0.0002027,2]
[387173665,1758606660646,-707.53,0.0002027,2]
[387173666,1758606660657,-400.0,0.0002027,2]
[387173667,1758606660667,-400.0,0.0002027,2]
[387173668,1758606660676,-400.0,0.0002027,2]
[387173669,1758606660685,-400.0,0.0002027,2]
[387173670,1758606660695,-520.4,0.0002027,2]
[387173671,1758606660704,-151.73150752,0.0002027,2]
[387173672,1758606660713,-400.0,0.0002027,2]
[387173673,1758606660722,-400.0,0.0002027,2]
[387173674,1758606660732,-400.0,0.0002027,2]
[387173675,1758606660741,-400.0,0.0002027,2]
[387173676,1758606660751,-400.0,0.0002027,2]
[387173677,1758606660760,-400.0,0.0002027,2]
[387173678,1758606660770,-400.0,0.0002027,2]
[387173679,1758606660779,-400.0,0.0002027,2]
[387173680,1758606660789,-400.0,0.0002027,2]
[387173681,1758606660801,-400.0,0.0002027,2]
[387173682,1758606660811,-400.0,0.0002027,2]
[387173683,1758606660820,-400.0,0.0002027,2]
[387173684,1758606660829,-400.0,0.0002027,2]
[387173685,1758606660839,-431.34,0.0002027,2]
[387173686,1758606660849,-400.0,0.0002027,2]
[387173687,1758606660858,-400.0,0.0002027,2]
[387173688,1758606660868,-400.0,0.0002027,2]
[387173689,1758606660879,-400.0,0.0002027,2]
[387173690,1758606660888,-400.0,0.0002027,2]
[387173691,1758606660897,-400.0,0.0002027,2]
[387173692,1758606660907,-400.0,0.0002027,2]
[387173693,1758606660916,-400.0,0.0002027,2]
[387173694,1758606660925,-400.0,0.0002027,2]
[387173695,1758606660936,-400.0,0.0002027,2]
[387173696,1758606660945,-400.0,0.0002027,2]
[387173697,1758606660954,-400.0,0.0002027,2]
[387173698,1758606660963,-450.47,0.0002027,2]
[387173699,1758606660973,-555.13,0.0002027,2]
[387173700,1758606660982,-400.0,0.0002027,2]
[387173701,1758606660995,-400.0,0.0002027,2]
[387173702,1758606661006,-400.0,0.0002027,2]
[387173703,1758606661016,-400.0,0.0002027,2]
[387173704,1758606661026,-400.0,0.0002027,2]
[387173705,1758606661035,-400.0,0.0002027,2]
[387173706,1758606661045,-400.0,0.0002027,2]
[387173707,1758606661055,-400.0,0.0002027,2]
[387173708,1758606661065,-400.0,0.0002027,2]
[387173709,1758606661075,-821.12,0.0002027,2]
[387173710,1758606661085,-400.0,0.0002027,2]
[387173711,1758606661095,-400.0,0.0002027,2]
[387173712,1758606661105,-409.56154554,0.0002027,2]
[387173713,1758606661115,-400.0,0.0002027,2]
[387173714,1758606661124,-400.0,0.0002027,2]
[387173715,1758606661133,-400.0,0.0002027,2]
[387173716,1758606661143,-400.0,0.0002027,2]
[387173717,1758606661152,-417.68,0.0002027,2]
[387173718,1758606661161,-400.0,0.0002027,2]
[387173719,1758606661171,-400.0,0.0002027,2]
[387173720,1758606661180,-400.0,0.0002027,2]
[387173721,1758606661190,-400.0,0.0002027,2]
[387173722,1758606661199,-400.0,0.0002027,2]
[387173723,1758606661209,-400.0,0.0002027,2]
[387173724,1758606661220,-400.0,0.0002027,2]
[387173725,1758606661229,-400.0,0.0002027,2]
[387173726,1758606661239,-400.0,0.0002027,2]
[387173727,1758606661248,-400.0,0.0002027,2]
[387173728,1758606661258,-400.0,0.0002027,2]
[387173729,1758606661267,-400.0,0.0002027,2]
[387173730,1758606661278,-400.0,0.0002027,2]
[387173731,1758606661288,-400.0,0.0002027,2]
[387173732,1758606661297,-400.0,0.0002027,2]
[387173733,1758606661307,-545.94,0.0002027,2]
[387173734,1758606661316,-706.34,0.0002027,2]
[387173735,1758606661325,-400.0,0.0002027,2]
[387173736,1758606661335,-400.0,0.0002027,2]
[387173737,1758606661344,-1759.45,0.0002027,2]
[387173738,1758606661353,-544.21,0.0002027,2]
[387173739,1758606661363,-400.0,0.0002027,2]
[387173740,1758606661372,-400.0,0.0002027,2]
[387173741,1758606661382,-400.0,0.0002027,2]
[387173742,1758606661391,-1024.05,0.0002027,2]
[387173743,1758606661400,-400.0,0.0002027,2]
[387173744,1758606661410,-400.0,0.0002027,2]
[387173745,1758606661419,-400.0,0.0002027,2]
[387173746,1758606661429,-431.44,0.0002027,2]
[387173747,1758606661438,-568.99,0.0002027,2]
[387173748,1758606661447,-400.0,0.0002027,2]
[387173749,1758606661457,-400.0,0.0002027,2]
[387173750,1758606661468,-517.07,0.0002027,2]
[387173751,1758606661478,-400.0,0.0002027,2]
[387173752,1758606661487,-623.33,0.0002027,2]
[387173753,1758606661496,-400.0,0.0002027,2]
[387173754,1758606661506,-400.0,0.0002027,2]
[387173755,1758606661515,-546.18,0.0002027,2]
[387173756,1758606661525,-400.0,0.0002027,2]
[387173757,1758606661534,-400.0,0.0002027,2]
[387173758,1758606661543,-400.0,0.0002027,2]
[387173759,1758606661553,-5720.27,0.0002027,2]
[387173760,1758606661562,-400.0,0.0002027,2]
[387173761,1758606661572,-400.0,0.0002027,2]
[387173762,1758606661581,-440.55,0.0002027,2]
[387173763,1758606661590,-400.0,0.0002027,2]
[387173764,1758606661600,-400.0,0.0002027,2]
[387173765,1758606661610,-667.61,0.0002027,2]
[387173766,1758606661619,-400.0,0.0002027,2]
[387173767,1758606661629,-400.0,0.0002027,2]
[387173768,1758606661638,-743.54,0.0002027,2]
[387173769,1758606661648,-461.52,0.0002027,2]
[387173770,1758606661658,-847.6,0.0002027,2]
[387173771,1758606661667,-400.0,0.0002027,2]
[387173772,1758606661677,-400.0,0.0002027,2]
[387173773,1758606661686,-206.63293875,0.00020271,2]
[387173774,1758606661696,-151.35523822,0.00020271,2]
[387173775,1758606661706,-150.0,0.00020271,2]
[387173776,1758606661716,-150.0,0.00020271,2]
[387173777,1758606661726,-201.38958089,0.00020271,2]
[387173778,1758606661735,-150.0,0.00020271,2]
[387173779,1758606661745,-575.97695954,0.00020271,2]
[387173780,1758606661755,-150.0,0.00020271,2]
[387173781,1758606661765,-150.0,0.00020271,2]
[387173782,1758606661774,-150.0,0.00020271,2]
[387173783,1758606661784,-150.0,0.00020271,2]
[387173784,1758606661793,-401.83800561,0.00020271,2]
[387173785,1758606661809,-406.26850782,0.00020271,2]
[387173786,1758606661819,-400.0,0.00020271,2]
[387173787,1758606661828,-400.0,0.00020271,2]
[387173788,1758606661839,-500.0,0.00020273,2]
[387173789,1758606661849,-500.73883637,0.00020273,2]
[387173790,1758606661859,-500.0,0.00020273,2]
[387173791,1758606661869,-500.0,0.00020273,2]
[387173792,1758606661879,-500.0,0.00020273,2]
[387173793,1758606661890,-203.1844418,0.00020273,2]
[387173794,1758606661899,-500.0,0.00020273,2]
[387173795,1758606661908,-500.0,0.00020273,2]
[387173796,1758606661918,-501.98399225,0.00020273,2]
[387173797,1758606661927,-500.0,0.00020273,2]
[387173798,1758606661937,-500.47935389,0.00020273,2]
[387173799,1758606661946,-500.92325536,0.00020273,2]
[387173800,1758606661955,-500.0,0.00020273,2]
[387173801,1758606661966,-206.83664962,0.00020273,2]
[387173802,1758606661975,-501.74024584,0.00020273,2]
[387173803,1758606661985,-500.0,0.00020273,2]
[387173804,1758606661994,-500.0,0.00020273,2]
[387173805,1758606662003,-500.0,0.00020273,2]
[387173806,1758606662013,-500.0,0.00020273,2]
[387173807,1758606662022,-156.89714162,0.00020273,2]
[387173808,1758606662032,-514.67079359,0.00020273,2]
[387173809,1758606662041,-292.41,0.00020299,2]
[387173810,1758606662051,-502.61,0.00020349,2]
[387173811,1758606662060,-3065.0,0.00020349,2]
[387173812,1758606662069,-3405.973,0.00020349,2]
[387173813,1758606662078,-1262.0,0.00020349,2]
[387173814,1758606662088,-906.281,0.00020349,2]
[387173815,1758606662097,-2042.0,0.00020349,2]
[387173816,1758606662106,-1305.0,0.00020349,2]
[387173817,1758606662116,-606.258,0.00020349,2]
[387173818,1758606662125,-1582.0,0.00020349,2]
[387173819,1758606662134,-572.9,0.00020349,2]
[387173820,1758606662143,-4231.0,0.00020349,2]
[387173821,1758606662153,-1179.0,0.00020349,2]
[387173822,1758606662162,-899.0,0.00020349,2]
[387173823,1758606662171,-814.0,0.00020349,2]
[387173824,1758606662181,-4523.0,0.00020349,2]
[387173825,1758606662190,-727.0,0.00020349,2]
[387173826,1758606662199,-4177.0,0.00020349,2]
[387173827,1758606662209,-18894.0,0.00020349,2]
[387173828,1758606662219,-150.0,0.00020371,4]
[387173829,1758606662229,-400.0,0.00020391,2]
[387173830,1758606662238,-400.0,0.00020391,2]
[387173831,1758606662248,-400.0,0.00020391,2]
[387173832,1758606662257,-248.57885925,0.00020391,2]
[387173833,1758606662266,-400.0,0.00020391,2]
[387173834,1758606662275,-400.0,0.00020391,2]
[387173835,1758606662285,-303.29,0.00020391,2]
[387173836,1758606662294,-490.21,0.00020391,2]
[387173837,1758606662303,-400.0,0.00020391,2]
[387173838,1758606662312,-400.0,0.00020391,2]
[387173839,1758606662322,-708.2,0.00020391,2]
[387173840,1758606662331,-400.0,0.00020391,2]
[387173841,1758606662341,-458.53,0.00020391,2]
[387173842,1758606662351,-1094.34,0.00020391,2]
[387173843,1758606662361,-400.0,0.00020391,2]
[387173844,1758606662371,-400.0,0.00020391,2]
[387173845,1758606662381,-400.0,0.00020391,2]
[387173846,1758606662391,-593.45,0.00020391,2]
[387173847,1758606662401,-880.86,0.00020391,2]
[387173848,1758606662410,-363.54984808,0.00020395,2]
[387173849,1758606662420,-560.23,0.00020425,2]
[387173850,1758606662429,-500.0,0.00020425,2]
[387173851,1758606662438,-694.79,0.00020425,2]
[387173852,1758606662447,-500.0,0.00020425,2]
[387173853,1758606662456,-500.0,0.00020425,2]
[387173854,1758606662467,-943.76,0.00020425,2]
[387173855,1758606662477,-257.91778498,0.00020436,2]
[387173856,1758606662486,-175.59184489,0.00020444,2]
[387173857,1758606662495,-9774.27257195,0.00020455,2]
[387173858,1758606662505,-153.99647354,0.0002048,2]
[387173859,1758606662514,-155.10046571,0.0002048,2]
[387173860,1758606662524,-323.13066398,0.00020491,2]
[387173861,1758606662534,-382.82507507,0.00020491,2]
[387173862,1758606662544,-419.09841905,0.00020491,2]
[387173863,1758606662553,-404.56707641,0.00020491,2]
[387173864,1758606662562,-400.0,0.00020491,2]
[387173865,1758606662572,-503.4762763,0.00020491,2]
[387173866,1758606662581,-416.7831678,0.00020491,2]
[387173867,1758606662591,-400.0,0.00020491,2]
[387173868,1758606662600,-400.0,0.00020491,2]
[387173869,1758606662609,-407.2973093,0.00020491,2]
[387173870,1758606662619,-404.94563368,0.00020491,2]
[387173871,1758606662628,-400.0,0.00020491,2]
[387173872,1758606662638,-400.0,0.00020491,2]
[387173873,1758606662647,-400.0,0.00020491,2]
[387173874,1758606662656,-400.0,0.00020491,2]
[387173875,1758606662666,-400.0,0.00020491,2]
[387173876,1758606662675,-402.46893818,0.00020491,2]
[387173877,1758606662685,-400.0,0.00020491,2]
[387173878,1758606662694,-400.0,0.00020491,2]
[387173879,1758606662703,-400.0,0.00020491,2]
[387173880,1758606662713,-400.0,0.00020491,2]
[387173881,1758606662723,-400.0,0.00020491,2]
[387173882,1758606662732,-400.0,0.00020491,2]
[387173883,1758606662742,-400.0,0.00020491,2]
[387173884,1758606662751,-324.55734387,0.00020491,2]
[387173885,1758606662761,-400.0,0.00020491,2]
[387173886,1758606662771,-400.0,0.00020491,2]
[387173887,1758606662780,-400.0,0.00020491,2]
[387173888,1758606662791,-400.0,0.00020491,2]
[387173889,1758606662803,-400.0,0.00020491,2]
[387173890,1758606662813,-400.0,0.00020491,2]
[387173891,1758606662822,-400.0,0.00020491,2]
[387173892,1758606662904,-400.0,0.00020491,2]
[387173893,1758606662914,-400.0,0.00020491,2]
[387173894,1758606662923,-400.0,0.00020491,2]
[387173895,1758606662933,-400.0,0.00020491,2]
[387173896,1758606662943,-400.0,0.00020491,2]
[387173897,1758606662952,-404.81464344,0.00020491,2]
[387173898,1758606662963,-400.0,0.00020491,2]
[387173899,1758606662972,-400.0,0.00020491,2]
[387173900,1758606662982,-400.0,0.00020491,2]
[387173901,1758606662991,-400.0,0.00020491,2]
[387173902,1758606663001,-400.0,0.00020491,2]
[387173903,1758606663010,-400.0,0.00020491,2]
[387173904,1758606663020,-400.0,0.00020491,2]
[387173905,1758606663029,-400.0,0.00020491,2]
[387173906,1758606663039,-400.0,0.00020491,2]
[387173907,1758606663048,-400.0,0.00020491,2]
[387173908,1758606663057,-400.0,0.00020491,2]
[387173909,1758606663066,-400.0,0.00020491,2]
[387173910,1758606663076,-400.0,0.00020491,2]
[387173911,1758606663086,-400.0,0.00020491,2]
[387173912,1758606663095,-400.0,0.00020491,2]
[387173913,1758606663105,-414.47,0.00020491,2]
[387173914,1758606663114,-403.36814396,0.00020491,2]
[387173915,1758606663124,-400.0,0.00020491,2]
[387173916,1758606663133,-400.0,0.00020491,2]
[387173917,1758606663142,-400.0,0.00020491,2]
[387173918,1758606663152,-400.0,0.00020491,2]
[387173919,1758606663161,-400.0,0.00020491,2]
[387173920,1758606663170,-400.0,0.00020491,2]
[387173921,1758606663180,-400.0,0.00020491,2]
[387173922,1758606663190,-400.0,0.00020491,2]
[387173923,1758606663199,-400.0,0.00020491,2]
[387173924,1758606663209,-403.40567388,0.00020491,2]
[387173925,1758606663219,-404.64977535,0.00020491,2]
[387173926,1758606663228,-406.93533831,0.00020491,2]
[387173927,1758606663238,-400.0,0.00020491,2]
[387173928,1758606663247,-400.0,0.00020491,2]
[387173929,1758606663256,-400.0,0.00020491,2]
[387173930,1758606663266,-400.0,0.00020491,2]
[387173931,1758606663276,-400.0,0.00020491,2]
[387173932,1758606663285,-400.0,0.00020491,2]
[387173933,1758606663295,-400.0,0.00020491,2]
[387173934,1758606663304,-400.0,0.00020491,2]
[387173935,1758606663313,-400.0,0.00020491,2]
[387173936,1758606663323,-400.0,0.00020491,2]
[387173937,1758606663332,-400.0,0.00020491,2]
[387173938,1758606663342,-400.0,0.00020491,2]
[387173939,1758606663351,-410.69321522,0.00020491,2]
[387173940,1758606663361,-400.0,0.00020491,2]
[387173941,1758606663370,-400.0,0.00020491,2]
[387173942,1758606663380,-400.0,0.00020491,2]
[387173943,1758606663390,-404.54968349,0.00020491,2]
[387173944,1758606663399,-276.1017677,0.00020491,2]
[387173945,1758606663409,-400.0,0.00020491,2]
[387173946,1758606663419,-400.0,0.00020491,2]
[387173947,1758606663428,-400.0,0.00020491,2]
[387173948,1758606663438,-400.0,0.00020491,2]
[387173949,1758606663447,-400.0,0.00020491,2]
[387173950,1758606663457,-400.0,0.00020491,2]
[387173951,1758606663467,-1000.0,0.00020491,2]
[387173952,1758606663476,-400.0,0.00020491,2]
[387173953,1758606663486,-400.0,0.00020492,2]
[387173954,1758606663495,-400.0,0.00020492,2]
[387173955,1758606663505,-402.09536301,0.00020492,2]
[387173956,1758606663515,-400.0,0.00020492,2]
[387173957,1758606663524,-400.0,0.00020492,2]
[387173958,1758606663534,-400.0,0.00020492,2]
[387173959,1758606663544,-546.26,0.00020492,2]
[387173960,1758606663554,-459.17,0.00020492,2]
[387173961,1758606663563,-400.0,0.00020492,2]
[387173962,1758606663572,-594.39,0.00020492,2]
[387173963,1758606663582,-400.0,0.00020492,2]
[387173964,1758606663591,-400.0,0.00020492,2]
[387173965,1758606663601,-400.0,0.00020492,2]
[387173966,1758606663610,-413.61,0.00020492,2]
[387173967,1758606663620,-1791.94,0.00020492,2]
[387173968,1758606663630,-400.0,0.00020492,2]
[387173969,1758606663639,-727.44,0.00020492,2]
[387173970,1758606663647,-424.1,0.00020492,2]
[387173971,1758606663657,-680.28,0.00020492,2]
[387173972,1758606663666,-400.0,0.00020492,2]
[387173973,1758606663675,-400.0,0.00020492,2]
[387173974,1758606663685,-740.8,0.00020492,2]
[387173975,1758606663695,-780.25,0.00020492,2]
[387173976,1758606663704,-787.95,0.00020492,2]
[387173977,1758606663714,-400.9,0.00020492,2]
[387173978,1758606663723,-573.0,0.00020492,2]
[387173979,1758606663733,-439.84,0.00020492,2]
[387173980,1758606663742,-807.44,0.00020492,2]
[387173981,1758606663751,-1136.38,0.00020492,2]
[387173982,1758606663760,-2423.02,0.00020492,2]
[387173983,1758606663770,-788.09,0.000205,2]
[387173984,1758606663779,-11476.73221229,0.00020511,2]
[387173985,1758606663789,-208.0,0.00020515,2]
[387173986,1758606663800,-150.0,0.0002052,2]
[387173987,1758606663810,-1000.0,0.00020521,2]
[387173988,1758606663819,-1000.0,0.00020521,2]
[387173989,1758606663829,-708.43242488,0.00020521,2]
[387173990,1758606663838,-936.77809542,0.00020521,2]
[387173991,1758606663849,-1000.0,0.00020521,2]
[387173992,1758606663858,-1000.0,0.00020521,2]
[387173993,1758606663867,-400.0,0.00020523,2]
[387173994,1758606663876,-563.0,0.00020523,2]
[387173995,1758606663887,-344.16416383,0.00020523,2]
[387173996,1758606663896,-400.0,0.00020523,2]
[387173997,1758606663906,-400.0,0.00020523,2]
[387173998,1758606663915,-454.75,0.00020523,2]
[387173999,1758606663924,-400.0,0.00020523,2]
[387174000,1758606663934,-604.44,0.00020523,2]
[387174001,1758606663944,-533.49,0.00020523,2]
[387174002,1758606663953,-210.05,0.00020523,2]
[387174003,1758606663963,-694.1,0.00020523,2]
[387174004,1758606663972,-400.0,0.00020523,2]
[387174005,1758606663984,-400.0,0.00020523,2]
[387174006,1758606663993,-422.59,0.00020523,2]
[387174007,1758606664003,-400.0,0.00020523,2]
[387174008,1758606664012,-717.78,0.00020523,2]
[387174009,1758606664022,-164.20699492,0.00020523,2]
[387174010,1758606664031,-431.15,0.00020523,2]
[387174011,1758606664040,-400.0,0.00020523,2]
[387174012,1758606664050,-427.27,0.00020523,2]
[387174013,1758606664059,-400.0,0.00020523,2]
[387174014,1758606664068,-614.75,0.00020523,2]
[387174015,1758606664078,-400.0,0.00020523,2]
[387174016,1758606664087,-400.0,0.00020523,2]
[387174017,1758606664097,-404.29396381,0.00020523,2]
[387174018,1758606664106,-669.49,0.00020523,2]
[387174019,1758606664116,-402.43605551,0.00020523,2]
[387174020,1758606664125,-255.26106654,0.00020523,2]
[387174021,1758606664135,-400.0,0.00020523,2]
[387174022,1758606664144,-400.0,0.00020523,2]
[387174023,1758606664153,-400.0,0.00020523,2]
[387174024,1758606664163,-418.8,0.00020523,2]
[387174025,1758606664173,-573.35,0.00020523,2]
[387174026,1758606664183,-400.0,0.00020523,2]
[387174027,1758606664192,-403.2,0.00020523,2]
[387174028,1758606664202,-400.0,0.00020523,2]
[387174029,1758606664211,-400.0,0.00020523,2]
[387174030,1758606664223,-303.25234305,0.00020523,2]
[387174031,1758606664234,-400.0,0.00020523,2]
[387174032,1758606664243,-400.0,0.00020523,2]
[387174033,1758606664252,-685.05,0.00020523,2]
[387174034,1758606664261,-400.0,0.00020523,2]
[387174035,1758606664271,-435.99,0.00020523,2]
[387174036,1758606664280,-291.39590296,0.00020523,2]
[387174037,1758606664289,-400.0,0.00020523,2]
[387174038,1758606664299,-592.9,0.00020523,2]
[387174039,1758606664308,-528.93,0.00020523,2]
[387174040,1758606664317,-796.37,0.00020523,2]
[387174041,1758606664326,-400.0,0.00020523,2]
[387174042,1758606664335,-461.3,0.00020523,2]
[387174043,1758606664344,-400.0,0.00020523,2]
[387174044,1758606664353,-400.0,0.00020523,2]
[387174045,1758606664362,-400.0,0.00020523,2]
[387174046,1758606664372,-400.0,0.00020523,2]
[387174047,1758606664381,-405.13029959,0.00020523,2]
[387174048,1758606664390,-400.0,0.00020523,2]
[387174049,1758606664399,-551.65,0.00020523,2]
[387174050,1758606664409,-445.76,0.00020523,2]
[387174051,1758606664418,-620.26,0.00020523,2]
[387174052,1758606664427,-400.0,0.00020523,2]
[387174053,1758606664436,-474.03,0.00020523,2]
[387174054,1758606664446,-400.0,0.00020523,2]
[387174055,1758606664456,-400.0,0.00020523,2]
[387174056,1758606664466,-400.60959753,0.00020523,2]
[387174057,1758606664475,-400.0,0.00020523,2]
[387174058,1758606664485,-400.0,0.00020523,2]
[387174059,1758606664495,-400.0,0.00020523,2]
[387174060,1758606664504,-1134.69,0.00020523,2]
[387174061,1758606664514,-553.2,0.00020523,2]
[387174062,1758606664525,-400.0,0.00020523,2]
[387174063,1758606664535,-400.0,0.00020523,2]
[387174064,1758606664545,-560.87,0.00020523,2]
[387174065,1758606664555,-669.97,0.00020523,2]
[387174066,1758606664565,-518.47,0.00020523,2]
[387174067,1758606664576,-603.36,0.00020523,2]
[387174068,1758606664586,-507.24,0.00020523,2]
[387174069,1758606664596,-1226.65,0.00020523,2]
[387174070,1758606664606,-400.0,0.00020523,2]
[387174071,1758606664620,-510.08,0.00020523,2]
[387174072,1758606664630,-400.0,0.00020523,2]
[387174073,1758606664639,-2244.82,0.00020523,2]
[387174074,1758606664649,-3137.54,0.00020523,2]
[387174075,1758606664658,-470.99,0.00020523,2]
[387174076,1758606664667,-3479.82,0.00020523,2]
[387174077,1758606664677,-478.17,0.00020523,2]
[387174078,1758606664686,-400.0,0.00020523,2]
[387174079,1758606664695,-1313.4,0.00020523,2]
[387174080,1758606664704,-400.0,0.00020523,2]
[387174081,1758606664714,-400.0,0.00020523,2]
[387174082,1758606664723,-766.42,0.00020523,2]
[387174083,1758606664732,-400.0,0.00020523,2]
[387174084,1758606664742,-631.18,0.00020523,2]
[387174085,1758606664751,-470.21,0.00020542,2]
[387174086,1758606664761,-400.0,0.00020542,2]
[387174087,1758606664769,-400.0,0.00020542,2]
[387174088,1758606664778,-400.0,0.00020542,2]
[387174089,1758606664788,-514.73274957,0.00020542,2]
[387174090,1758606664797,-400.0,0.00020542,2]
[387174091,1758606664809,-400.0,0.00020542,2]
[387174092,1758606664818,-400.0,0.00020542,2]
[387174093,1758606664827,-479.31,0.00020542,2]
[387174094,1758606664837,-400.0,0.00020542,2]
[387174095,1758606664846,-626.98,0.00020542,2]
[387174096,1758606664855,-400.0,0.00020542,2]
[387174097,1758606664864,-400.0,0.00020542,2]
[387174098,1758606664874,-600.75,0.00020542,2]
[387174099,1758606664884,-400.0,0.00020542,2]
[387174100,1758606664893,-595.41,0.00020542,2]